[Event "GER-chT States Women 2022"]
[Site "Braunfels"]
[Date "2022.06.18"]
[Round "4.37"]
[White "Mueller, Riyanna"]
[Black "Malachowski, Margrit"]
[Result "1/2-1/2"]
[ECO "B10"]
[WhiteElo "1521"]
[BlackElo "2061"]
[Annotator "NA RC"]
[PlyCount "83"]
[EventDate "2022.06.15"]
[EventType "swiss"]
[EventCountry "GER"]
[SourceTitle "playchess.com"]
[Source "ChessBase"]
[SourceQuality "1"]
[TimeControl "40/5400+30:1800+30"]

1. e4 {[%emt 0:00:03]} c6 {[%emt 0:00:44]} 2. c4 {[%emt 0:00:07]} d6 {[%emt 0:00:58]} 3. d4 {[%emt 0:02:38]} Nd7 {[%emt 0:01:45]} 4. Nf3 {[%emt 0:01:10]} Qc7 {[%emt 0:02:39]} 5. Nc3 {[%emt 0:02:31]} e5 {[%emt 0:01:17]} 6. d5 {[%emt 0:04:44]} Ngf6 {[%emt 0:02:09]} 7. Be2 {[%emt 0:02:35]} Nc5 {[%emt 0:05:11]} 8. Qc2 {[%emt 0:03:45]} a5 {[%emt 0:04:32]} 9. O-O {[%emt 0:02:40]} Bg4 {[%emt 0:01:41]} 10. Be3 {[%emt 0:02:18]} Ncd7 {[%emt 0:01:12]} 11. a3 {[%emt 0:06:20]} Be7 {[%emt 0:00:39]} 12. b4 {[%emt 0:01:40]} axb4 {[%emt 0:00:25]} 13. axb4 {[%emt 0:00:06]} O-O {[%emt 0:00:16]} 14. Rfc1 {[%emt 0:09:07]} h6 {[%emt 0:07:07]} 15. Nh4 {[%emt 0:12:12]} Rxa1 {[%emt 0:02:07]} 16. Rxa1 {[%emt 0:00:21]} Bxe2 {[%emt 0:00:56]} 17. Nxe2 {[%emt 0:00:30]} cxd5 {[%emt 0:00:26]} 18. Nf5 {[%emt 0:01:49]} Re8 {[%emt 0:06:41]} 19. Nxe7+ {[%emt 0:05:46]} Rxe7 {[%emt 0:00:28]} 20. Ra8+ {[%emt 0:00:08]} Nf8 {[%emt 0:07:41]} 21. exd5 {[%emt 0:08:44]} Nxd5 {[%emt 0:04:47]} 22. Qe4 {[%emt 0:05:40]} Nxe3 {[%emt 0:15:41]} 23. fxe3 {[%emt 0:00:08]} Qb6 {[%emt 0:00:58]} 24. b5 {[%emt 0:03:18]} f5 {[%emt 0:02:11]} 25. Qxf5 {[%emt 0:04:16]} Qxe3+ {[%emt 0:01:10]} 26. Qf2 {[%emt 0:00:07]} Qxf2+ {[%emt 0:00:35]} 27. Kxf2 {[%emt 0:00:06]} Kf7 {[%emt 0:00:14]} 28. Nc3 {[%emt 0:00:59]} Ne6 {[%emt 0:03:28]} (28... Nd7 $17 29. Nd5 Re8) 29. Nd5 {[%emt 0:02:39]} ({White should play} 29. Rb8 $11) 29... Rd7 {[%emt 0:08:39]} 30. Ke3 {[%emt 0:03:08]} Kg6 {[%emt 0:01:03]} 31. Nb6 {[%emt 0:02:25]} Rd8 {[%emt 0:07:58]} 32. Rxd8 {[%emt 0:11:01]} Nxd8 {[%emt 0:00:01]} 33. Nc8 {[%emt 0:00:24]} Nf7 $11 {[%emt 0:00:15]} 34. Ke4 {[%emt 0:01:06]} Kf6 {[%emt 0:00:16]} 35. Kd5 {[%emt 0:00:15]} Kf5 {[%emt 0:00:17]} 36. Nxd6+ {[%emt 0:00:11]} Nxd6 {[%emt 0:00:12]} 37. Kxd6 {[%emt 0:00:04]} e4 {[%emt 0:00:01]} 38. c5 {[%emt 0:00:12]} e3 {[%emt 0:00:21]} 39. c6 {[%emt 0:00:05]} bxc6 {[%emt 0:01:09]} 40. bxc6 {[%emt 0:00:11]} e2 {[%emt 0:00:07]} 41. c7 {[%emt 0:30:20]} e1=Q 42. c8=Q+ 1/2-1/2

[Event "GER-chT States Women 2022"]
[Site "Braunfels"]
[Date "2022.06.18"]
[Round "4.38"]
[White "Landenberger, Anja Kathrin"]
[Black "Anisimova, Mariya"]
[Result "0-1"]
[ECO "D02"]
[WhiteElo "1767"]
[BlackElo "1386"]
[Annotator "NA RC"]
[PlyCount "96"]
[EventDate "2022.06.15"]
[EventType "swiss"]
[EventCountry "GER"]
[SourceTitle "playchess.com"]
[Source "ChessBase"]
[SourceQuality "1"]
[TimeControl "40/5400+30:1800+30"]

1. d4 {[%emt 0:00:25]} Nf6 {[%emt 0:00:06]} 2. Nf3 {[%emt 0:00:26]} d5 {[%emt 0:00:11]} 3. Bf4 {[%emt 0:00:40]} e6 {[%emt 0:00:28]} 4. e3 {[%emt 0:00:56]} a6 {[%emt 0:02:13]} 5. Nbd2 {[%emt 0:02:18]} c5 {[%emt 0:00:48]} 6. c3 {[%emt 0:00:38]} Nc6 {[%emt 0:01:25]} 7. Bd3 {[%emt 0:04:26]} cxd4 {[%emt 0:05:37]} 8. cxd4 {[%emt 0:04:03]} Bd6 {[%emt 0:10:48]} 9. Bg3 {[%emt 0:04:59]} Bxg3 {[%emt 0:03:57]} 10. hxg3 {[%emt 0:00:46]} Qd6 {[%emt 0:01:01]} 11. Rc1 {[%emt 0:07:06]} e5 {[%emt 0:02:47]} 12. dxe5 {[%emt 0:08:23]} Nxe5 {[%emt 0:00:11]} 13. Bb1 {[%emt 0:04:08]} Bd7 {[%emt 0:10:13]} 14. Nd4 {[%emt 0:13:12]} g6 {[%emt 0:11:09]} 15. N2f3 {[%emt 0:08:50]} Neg4 {[%emt 0:05:30]} 16. O-O {[%emt 0:09:42]} Ne4 {[%emt 0:13:11]} 17. Bxe4 {[%emt 0:03:44]} dxe4 {[%emt 0:00:06]} 18. Nh4 {[%emt 0:09:30]} O-O {[%emt 0:02:28]} 19. Qc2 {[%emt 0:05:33]} f5 {[%emt 0:10:19]} 20. Rfd1 {[%emt 0:06:44]} Qe7 {[%emt 0:05:34]} 21. Qb3+ {[%emt 0:02:01]} Qf7 {[%emt 0:00:06]} 22. Rc7 {[%emt 0:01:17]} Qxb3 {[%emt 0:02:23]} 23. axb3 {[%emt 0:01:13]} Bc8 {[%emt 0:00:34]} 24. Rdc1 {[%emt 0:00:42]} g5 {[%emt 0:00:19]} 25. Nhxf5 {[%emt 0:00:43]} Bxf5 {[%emt 0:00:08]} 26. Rxb7 {[%emt 0:00:25]} Rac8 {[%emt 0:01:43]} 27. Rbc7 {[%emt 0:00:37]} Rxc7 {[%emt 0:01:08]} 28. Rxc7 {[%emt 0:00:01]} Bg6 {[%emt 0:00:13]} 29. Ne6 {[%emt 0:00:10]} Rxf2 {[%emt 0:02:31]} 30. Rc8+ {[%emt 0:01:13]} Kf7 {[%emt 0:00:49]} 31. Nxg5+ {[%emt 0:00:08]} Kf6 {[%emt 0:00:43]} 32. Nxe4+ {[%emt 0:00:30]} Bxe4 {[%emt 0:00:14]} 33. Rf8+ {[%emt 0:00:02]} Kg5 {[%emt 0:00:17]} 34. Rxf2 {[%emt 0:00:10]} Nxf2 {[%emt 0:00:10]} 35. Kxf2 {[%emt 0:00:03]} a5 {[%emt 0:00:23]} 36. Ke2 {[%emt 0:00:49]} Bc2 {[%emt 0:01:40]} 37. Kf3 {[%emt 0:00:41]} Bxb3 {[%emt 0:00:10]} 38. e4 {[%emt 0:01:10]} Bd1+ {[%emt 0:01:03]} 39. Ke3 {[%emt 0:00:23]} Kg4 {[%emt 0:00:09]} 40. Kf2 {[%emt 0:01:09]} Bb3 {[%emt 0:00:19]} 41. e5 {[%emt 0:30:32]} a4 {[%emt 0:30:07]} 42. Kf1 {[%emt 0:00:00]} Kxg3 {[%emt 0:00:00]} 43. Kg1 {[%emt 0:00:00]} h5 {[%emt 0:00:00]} 44. Kf1 {[%emt 0:00:00]} h4 {[%emt 0:00:00]} 45. Kg1 {[%emt 0:00:00]} Bd5 {[%emt 0:00:00]} 46. Kh1 {[%emt 0:00:00]} Bxg2+ {[%emt 0:00:00]} 47. Kg1 {[%emt 0:00:00]} h3 {[%emt 0:00:00]} 48. e6 {[%emt 0:00:00]} h2# {[%emt 0:00:00]} 0-1

[Event "GER-chT States Women 2022"]
[Site "Braunfels"]
[Date "2022.06.18"]
[Round "4.39"]
[White "Perovic-Ottstadt, Sanja"]
[Black "Kuehnel, Jutta"]
[Result "1-0"]
[ECO "D05"]
[WhiteElo "1507"]
[BlackElo "1547"]
[Annotator "NA RC"]
[PlyCount "29"]
[EventDate "2022.06.15"]
[EventType "swiss"]
[EventCountry "GER"]
[SourceTitle "playchess.com"]
[Source "ChessBase"]
[SourceQuality "1"]
[TimeControl "40/5400+30:1800+30"]

1. d4 {[%emt 0:00:04]} d5 {[%emt 0:00:15]} 2. Nf3 {[%emt 0:00:23]} Nf6 {[%emt 0:00:08]} 3. e3 {[%emt 0:00:07]} e6 {[%emt 0:00:30]} 4. Bd3 {[%emt 0:00:12]} c5 {[%emt 0:00:30]} 5. c3 {[%emt 0:00:13]} Bd7 {[%emt 0:09:02]} 6. Nbd2 {[%emt 0:01:26]} c4 {[%emt 0:06:21]} 7. Bc2 {[%emt 0:00:32]} b5 {[%emt 0:10:55]} 8. O-O {[%emt 0:01:10]} Be7 {[%emt 0:08:41]} 9. Re1 {[%emt 0:02:16]} O-O {[%emt 0:01:54]} 10. e4 {[%emt 0:00:16]} dxe4 {[%emt 0:04:30]} 11. Nxe4 {[%emt 0:00:12]} Nxe4 {[%emt 0:05:09]} 12. Bxe4 {[%emt 0:01:58]} Bc6 {[%emt 0:01:19]} 13. Qc2 {[%emt 0:02:10]} Bxe4 {[%emt 0:05:04]} 14. Qxe4 {[%emt 0:00:28]} Qd5 {[%emt 0:00:52]} 15. Qxd5 {[%emt 0:00:52]} 1-0

[Event "GER-chT States Women 2022"]
[Site "Braunfels"]
[Date "2022.06.18"]
[Round "4.40"]
[White "Johe, Hildegard"]
[Black "Weinmann, Helene"]
[Result "1/2-1/2"]
[ECO "A04"]
[WhiteElo "1353"]
[BlackElo "1468"]
[Annotator "NA RC"]
[PlyCount "245"]
[EventDate "2022.06.15"]
[EventType "swiss"]
[EventCountry "GER"]
[SourceTitle "playchess.com"]
[Source "ChessBase"]
[SourceQuality "1"]
[TimeControl "40/5400+30:1800+30"]

1. Nf3 {[%emt 0:00:10]} Nc6 {[%emt 0:01:05]} 2. d3 {[%emt 0:00:18]} d5 {[%emt 0:00:28]} 3. g3 {[%emt 0:00:13]} e5 {[%emt 0:00:24]} 4. Nbd2 {[%emt 0:00:52]} Nf6 {[%emt 0:00:29]} 5. e4 {[%emt 0:03:16]} dxe4 {[%emt 0:00:48]} 6. dxe4 {[%emt 0:02:16]} Bd6 {[%emt 0:01:20]} 7. Bg2 {[%emt 0:00:28]} O-O {[%emt 0:00:14]} 8. O-O {[%emt 0:02:29]} Bd7 {[%emt 0:01:15]} 9. a3 {[%emt 0:04:17]} Qc8 {[%emt 0:01:27]} 10. c3 {[%emt 0:05:20]} Bh3 {[%emt 0:00:16]} 11. Qc2 {[%emt 0:02:17]} Bxg2 {[%emt 0:00:30]} 12. Kxg2 {[%emt 0:00:24]} Qe6 {[%emt 0:00:42]} 13. b4 {[%emt 0:01:08]} Rfe8 {[%emt 0:00:56]} 14. h3 {[%emt 0:03:29]} Rad8 {[%emt 0:02:29]} 15. Bb2 {[%emt 0:03:27]} Nd7 {[%emt 0:03:16]} 16. Rad1 {[%emt 0:06:11]} Qg6 {[%emt 0:00:32]} 17. Kh2 {[%emt 0:06:24]} Be7 {[%emt 0:01:52]} 18. Nc4 {[%emt 0:05:42]} Qe6 {[%emt 0:01:03]} 19. Qe2 {[%emt 0:02:01]} Bf6 {[%emt 0:01:26]} 20. Ne3 {[%emt 0:02:01]} Nb6 {[%emt 0:00:45]} 21. c4 {[%emt 0:05:41]} Nd4 {[%emt 0:03:29]} 22. Nxd4 {[%emt 0:07:30]} exd4 {[%emt 0:01:06]} 23. Nd5 {[%emt 0:00:55]} Nxd5 {[%emt 0:01:25]} 24. cxd5 {[%emt 0:00:39]} Qxd5 {[%emt 0:00:49]} 25. exd5 {[%emt 0:03:53]} Rxe2 {[%emt 0:00:20]} 26. Bxd4 {[%emt 0:00:11]} Bxd4 {[%emt 0:01:17]} 27. Rxd4 {[%emt 0:00:16]} Ra2 {[%emt 0:00:35]} 28. Rd3 {[%emt 0:00:45]} Kf8 {[%emt 0:00:37]} 29. Kg1 {[%emt 0:01:43]} Re8 {[%emt 0:00:38]} 30. Rc3 {[%emt 0:09:36]} Re7 {[%emt 0:00:53]} 31. Rfc1 {[%emt 0:05:39]} Ree2 {[%emt 0:01:51]} 32. Rf3 {[%emt 0:00:28]} Re7 {[%emt 0:00:44]} 33. Rfc3 {[%emt 0:00:20]} Rd7 {[%emt 0:01:33]} 34. Rd1 {[%emt 0:02:58]} Ke7 {[%emt 0:00:53]} 35. Rcd3 {[%emt 0:02:43]} Kd6 {[%emt 0:01:05]} 36. f4 {[%emt 0:02:05]} Re7 {[%emt 0:00:20]} 37. R1d2 {[%emt 0:01:01]} Ra1+ {[%emt 0:01:07]} 38. Kf2 {[%emt 0:00:29]} Ree1 {[%emt 0:02:16]} 39. Re2 {[%emt 0:09:09]} Rxe2+ {[%emt 0:01:17]} 40. Kxe2 {[%emt 0:00:08]} Ra2+ {[%emt 0:00:50]} 41. Ke3 {[%emt 0:31:03]} b5 {[%emt 0:33:08]} 42. Kd4 {[%emt 0:00:00]} Rc2 {[%emt 0:00:00]} 43. g4 {[%emt 0:00:00]} Rc4+ {[%emt 0:00:00]} 44. Ke3 {[%emt 0:00:00]} a6 {[%emt 0:00:00]} 45. h4 {[%emt 0:00:00]} g6 {[%emt 0:00:00]} 46. Kf3 {[%emt 0:00:00]} h6 {[%emt 0:00:00]} 47. g5 {[%emt 0:00:00]} h5 {[%emt 0:00:00]} 48. Ke3 {[%emt 0:00:00]} Rc1 {[%emt 0:00:00]} 49. Kf3 {[%emt 0:00:00]} Re1 {[%emt 0:00:00]} 50. Rd4 {[%emt 0:00:00]} Rh1 {[%emt 0:00:00]} 51. Kg3 {[%emt 0:00:00]} Rc1 {[%emt 0:00:00]} 52. Rd3 {[%emt 0:00:00]} Rg1+ {[%emt 0:00:00]} 53. Kf3 {[%emt 0:00:00]} Rg4 {[%emt 0:00:00]} 54. Rd4 {[%emt 0:00:00]} Rxh4 {[%emt 0:00:00]} 55. Kg2 {[%emt 0:00:00]} Rg4+ {[%emt 0:00:00]} 56. Kh3 {[%emt 0:00:00]} Rg1 {[%emt 0:00:00]} 57. Kh2 {[%emt 0:00:25]} Re1 {[%emt 0:00:00]} 58. Rd3 {[%emt 0:00:28]} Re4 {[%emt 0:00:00]} 59. Kg3 {[%emt 0:00:43]} Rc4 {[%emt 0:00:00]} 60. Kf3 {[%emt 0:00:34]} c6 {[%emt 0:00:00]} 61. dxc6+ {[%emt 0:01:24]} Kxc6 {[%emt 0:00:00]} 62. Kg3 {[%emt 0:01:02]} Re4 {[%emt 0:00:00]} 63. Kf3 {[%emt 0:00:38]} Re6 {[%emt 0:00:00]} 64. Kg3 {[%emt 0:00:23]} Rd6 {[%emt 0:00:00]} 65. Re3 {[%emt 0:01:15]} Rd7 {[%emt 0:00:00]} 66. Kf3 {[%emt 0:00:24]} Kd6 {[%emt 0:00:43]} 67. Rd3+ {[%emt 0:00:37]} Ke7 {[%emt 0:01:09]} 68. Re3+ {[%emt 0:00:33]} Kf8 {[%emt 0:00:38]} 69. Kg3 {[%emt 0:00:30]} Kg7 {[%emt 0:00:14]} 70. Kf3 {[%emt 0:00:14]} Rd6 {[%emt 0:00:38]} 71. Kg3 {[%emt 0:00:34]} f6 {[%emt 0:00:25]} 72. gxf6+ {[%emt 0:00:36]} Kxf6 {[%emt 0:00:20]} 73. Rf3 {[%emt 0:02:03]} Kf5 {[%emt 0:00:39]} 74. Re3 {[%emt 0:01:10]} Re6 {[%emt 0:03:00]} 75. Rf3 {[%emt 0:00:23]} Re4 {[%emt 0:01:48]} 76. Rd3 {[%emt 0:00:46]} Rc4 {[%emt 0:01:59]} 77. Rd5+ {[%emt 0:01:06]} Ke6 {[%emt 0:00:27]} 78. Re5+ {[%emt 0:00:21]} Kf6 {[%emt 0:00:34]} 79. Re3 {[%emt 0:00:07]} Rd4 {[%emt 0:01:05]} 80. Kf3 {[%emt 0:00:18]} Rd6 {[%emt 0:01:12]} 81. Kg3 {[%emt 0:00:42]} Rd4 {[%emt 0:00:49]} 82. Kf3 {[%emt 0:00:26]} Rd1 {[%emt 0:02:06]} 83. Kg2 {[%emt 0:00:29]} Kf5 {[%emt 0:00:50]} 84. Kg3 {[%emt 0:01:09]} Rg1+ {[%emt 0:00:19]} 85. Kf2 {[%emt 0:01:27]} Rg4 {[%emt 0:01:09]} 86. Kf3 {[%emt 0:01:06]} Rh4 {[%emt 0:01:35]} 87. Re5+ {[%emt 0:00:18]} Kf6 {[%emt 0:00:13]} 88. Kg3 {[%emt 0:00:37]} Rg4+ {[%emt 0:00:34]} 89. Kf3 {[%emt 0:00:14]} Rg1 {[%emt 0:00:18]} 90. Kf2 {[%emt 0:00:43]} Ra1 {[%emt 0:00:19]} 91. Re3 {[%emt 0:00:10]} Kf5 {[%emt 0:00:47]} 92. Kf3 {[%emt 0:00:41]} Rf1+ {[%emt 0:00:22]} 93. Kg3 {[%emt 0:00:34]} Rxf4 {[%emt 0:00:22]} 94. Rc3 {[%emt 0:00:22]} Re4 {[%emt 0:00:45]} 95. Rc5+ {[%emt 0:00:22]} Kf6 {[%emt 0:00:57]} 96. Rc6+ {[%emt 0:00:14]} Re6 {[%emt 0:00:16]} 97. Rc3 {[%emt 0:00:01]} g5 {[%emt 0:00:23]} 98. Rf3+ {[%emt 0:00:26]} Kg6 {[%emt 0:00:27]} 99. Rc3 {[%emt 0:00:20]} h4+ {[%emt 0:00:44]} 100. Kh3 {[%emt 0:00:13]} Kf5 {[%emt 0:00:41]} 101. Rf3+ {[%emt 0:00:08]} Ke4 {[%emt 0:00:29]} 102. Kg4 {[%emt 0:00:32]} Re5 {[%emt 0:01:31]} 103. Rc3 {[%emt 0:00:18]} Kd4 {[%emt 0:00:33]} 104. Rc6 {[%emt 0:01:46]} Kd5 {[%emt 0:01:46]} 105. Rxa6 {[%emt 0:00:10]} Kc4 {[%emt 0:00:24]} 106. Rh6 {[%emt 0:00:35]} Kb3 {[%emt 0:00:44]} 107. Ra6 {[%emt 0:00:17]} Rd5 {[%emt 0:01:31]} 108. Kh3 {[%emt 0:00:43]} Rd3+ {[%emt 0:01:01]} 109. Kh2 {[%emt 0:00:49]} Kb2 {[%emt 0:01:12]} 110. a4 {[%emt 0:00:47]} bxa4 {[%emt 0:00:32]} 111. Rxa4 {[%emt 0:00:07]} Rd5 {[%emt 0:01:27]} 112. Ra5 {[%emt 0:00:21]} Rd2+ {[%emt 0:00:32]} 113. Kh3 {[%emt 0:00:23]} Rd3+ {[%emt 0:00:33]} 114. Kh2 {[%emt 0:00:30]} g4 {[%emt 0:00:46]} 115. Rh5 {[%emt 0:00:55]} Rd2+ {[%emt 0:00:17]} 116. Kh1 {[%emt 0:00:01]} h3 {[%emt 0:01:10]} 117. Rg5 {[%emt 0:00:48]} Rd4 {[%emt 0:00:42]} 118. b5 {[%emt 0:00:29]} Rb4 {[%emt 0:00:35]} 119. b6 {[%emt 0:01:00]} Ka3 {[%emt 0:01:15]} 120. b7 {[%emt 0:00:22]} Rxb7 {[%emt 0:00:43]} 121. Rxg4 {[%emt 0:00:06]} Rb3 {[%emt 0:00:55]} 122. Kh2 {[%emt 0:00:05]} Kb2 {[%emt 0:01:27]} 123. Rg3 {[%emt 0:00:20]} 1/2-1/2